[Event "*** Titled Tuesday 3|2 Blitz"]
[Site "Chess.com"]
[Date "2016.06.07"]
[Round "3"]
[White "Abrito99"]
[Black "metalbattler"]
[Result "1-0"]
[WhiteElo "2344"]
[BlackElo "1943"]
[TimeControl "180+2"]
[EndTime "17:32:31 PDT"]
[Termination "Abrito99 won by resignation"]

1. e4 {[%clk 0:03:01.9]} 1... d5 {[%clk 0:02:28.7]} 2. exd5 {[%clk 0:03:02.5]}
2... Nf6 {[%clk 0:02:30.3]} 3. Bb5+ {[%clk 0:03:03]} 3... Bd7 {[%clk 0:02:31.3]}
4. Be2 {[%clk 0:03:04.4]} 4... Bf5 {[%clk 0:02:32.1]} 5. Nf3 {[%clk 0:03:05.7]}
5... Nxd5 {[%clk 0:02:30.8]} 6. O-O {[%clk 0:03:01.1]} 6... e6 {[%clk
0:02:31.9]} 7. d4 {[%clk 0:03:01.1]} 7... Be7 {[%clk 0:02:31.7]} 8. a3 {[%clk
0:03:00]} 8... O-O {[%clk 0:02:32.1]} 9. c4 {[%clk 0:02:59.4]} 9... Nf6 {[%clk
0:02:32.5]} 10. Nc3 {[%clk 0:03:00.3]} 10... c6 {[%clk 0:02:32.3]} 11. Be3
{[%clk 0:02:59.3]} 11... Nbd7 {[%clk 0:02:33.2]} 12. b4 {[%clk 0:02:56.1]} 12...
Ng4 {[%clk 0:02:19.5]} 13. Bf4 {[%clk 0:02:30.1]} 13... Bf6 {[%clk 0:02:16.5]}
14. Ne1 {[%clk 0:02:15.1]} 14... e5 {[%clk 0:01:40.6]} 15. Bxg4 {[%clk
0:02:11.3]} 15... Bxg4 {[%clk 0:01:40.8]} 16. Qxg4 {[%clk 0:02:13]} 16... exf4
{[%clk 0:01:42.3]} 17. Qxf4 {[%clk 0:02:14.9]} 17... Nb6 {[%clk 0:01:43.4]} 18.
c5 {[%clk 0:02:12.4]} 18... Nd5 {[%clk 0:01:42]} 19. Nxd5 {[%clk 0:02:11.4]}
19... Qxd5 {[%clk 0:01:43.9]} 20. Nf3 {[%clk 0:02:13]} 20... Rad8 {[%clk
0:01:36.7]} 21. Rfe1 {[%clk 0:02:13.2]} 21... Rfe8 {[%clk 0:01:25.2]} 22. h3
{[%clk 0:02:07.7]} 22... h6 {[%clk 0:01:21]} 23. Rad1 {[%clk 0:01:54.5]} 23...
Rxe1+ {[%clk 0:01:21.4]} 24. Rxe1 {[%clk 0:01:54.4]} 24... Bxd4 {[%clk
0:01:17.5]} 25. Re7 {[%clk 0:01:55.1]} 25... Bf6 {[%clk 0:00:30.5]} 26. Rxb7
{[%clk 0:01:54.9]} 26... a5 {[%clk 0:00:31.6]} 27. bxa5 {[%clk 0:01:37.3]} 27...
Qxc5 {[%clk 0:00:29.6]} 28. a6 {[%clk 0:01:38.3]} 28... Rd1+ {[%clk 0:00:18.3]}
29. Kh2 {[%clk 0:01:38.6]} 29... Qxf2 {[%clk 0:00:19.8]} 30. Rb8+ {[%clk
0:01:33.9]} 30... Kh7 {[%clk 0:00:17.9]} 31. Qf5+ {[%clk 0:01:35]} 31... g6
{[%clk 0:00:18.8]} 32. Qxf6 {[%clk 0:01:36.2]} 1-0

[Event "*** Titled Tuesday 3|2 Blitz"]
[Site "Chess.com"]
[Date "2016.06.07"]
[Round "3"]
[White "Keaton87"]
[Black "BikingBrian"]
[Result "1-0"]
[WhiteElo "2455"]
[BlackElo "2107"]
[TimeControl "180+2"]
[EndTime "17:32:49 PDT"]
[Termination "Keaton87 won by resignation"]

1. d4 {[%clk 0:03:01.9]} 1... Nf6 {[%clk 0:03:00.4]} 2. Bg5 {[%clk 0:03:01.5]}
2... c5 {[%clk 0:03:00.6]} 3. Nc3 {[%clk 0:03:01.1]} 3... Qb6 {[%clk 0:02:50.5]}
4. d5 {[%clk 0:02:52]} 4... Qxb2 {[%clk 0:02:49.1]} 5. Bd2 {[%clk 0:02:52.8]}
5... Qb6 {[%clk 0:02:47.6]} 6. e4 {[%clk 0:02:53.6]} 6... d6 {[%clk 0:02:48.6]}
7. f4 {[%clk 0:02:54.7]} 7... Bg4 {[%clk 0:02:45]} 8. Bb5+ {[%clk 0:02:52.6]}
8... Nbd7 {[%clk 0:02:45.3]} 9. Be2 {[%clk 0:02:42.8]} 9... Bxe2 {[%clk
0:02:44.5]} 10. Qxe2 {[%clk 0:02:44.7]} 10... a6 {[%clk 0:02:43.6]} 11. Nf3
{[%clk 0:02:43.3]} 11... g6 {[%clk 0:02:19.2]} 12. e5 {[%clk 0:02:44.4]} 12...
Ng8 {[%clk 0:02:19.6]} 13. Rb1 {[%clk 0:02:36.9]} 13... Qc7 {[%clk 0:02:06.5]}
14. e6 {[%clk 0:02:32.8]} 14... fxe6 {[%clk 0:01:49.2]} 15. dxe6 {[%clk
0:02:34.7]} 15... Nb6 {[%clk 0:01:41]} 16. Ng5 {[%clk 0:02:34.7]} 16... Nf6
{[%clk 0:01:36.9]} 17. Nf7 {[%clk 0:02:29.6]} 17... Rg8 {[%clk 0:01:38.1]} 18.
O-O {[%clk 0:02:30.3]} 18... Bg7 {[%clk 0:01:31.5]} 19. f5 {[%clk 0:02:29]}
19... Nbd5 {[%clk 0:01:23.2]} 20. Nxd5 {[%clk 0:02:25.9]} 20... Nxd5 {[%clk
0:01:25.1]} 21. fxg6 {[%clk 0:02:27]} 21... hxg6 {[%clk 0:01:25.2]} 22. Qe4
{[%clk 0:02:28.1]} 22... Nf6 {[%clk 0:01:22.7]} 23. Qxg6 {[%clk 0:02:27.8]}
23... Bf8 {[%clk 0:00:58.5]} 24. Nxd6+ {[%clk 0:02:03.7]} 24... Kd8 {[%clk
0:00:57.6]} 25. Nf7+ {[%clk 0:01:53.8]} 25... Kc8 {[%clk 0:00:52.1]} 26. Qf5
{[%clk 0:01:48.3]} 26... Qc6 {[%clk 0:00:43.6]} 27. g3 {[%clk 0:01:42.4]} 27...
b5 {[%clk 0:00:31.7]} 28. Bg5 {[%clk 0:01:35]} 28... Ne4 {[%clk 0:00:28.2]} 29.
Bf4 {[%clk 0:01:25.2]} 29... Kb7 {[%clk 0:00:27.2]} 30. Rbd1 {[%clk 0:01:25]}
30... Bh6 {[%clk 0:00:26.7]} 31. Ne5 {[%clk 0:01:20.9]} 31... Nxg3 {[%clk
0:00:25.9]} 32. hxg3 {[%clk 0:01:02]} 32... Bxf4 {[%clk 0:00:23.9]} 33. Nxc6
{[%clk 0:01:00.5]} 33... Rxg3+ {[%clk 0:00:23.7]} 34. Kf2 {[%clk 0:01:01.4]} 1-0

[Event "*** Titled Tuesday 3|2 Blitz"]
[Site "Chess.com"]
[Date "2016.06.07"]
[Round "3"]
[White "Newlight1"]
[Black "UltimateCrusher2"]
[Result "1-0"]
[WhiteElo "2186"]
[BlackElo "2089"]
[TimeControl "180+2"]
[EndTime "17:33:08 PDT"]
[Termination "Newlight1 won by resignation"]

1. e4 {[%clk 0:03:01.9]} 1... b6 {[%clk 0:03:01.9]} 2. d4 {[%clk 0:03:00.7]}
2... Bb7 {[%clk 0:03:03.2]} 3. Nc3 {[%clk 0:03:00.1]} 3... e6 {[%clk 0:03:04.8]}
4. Nf3 {[%clk 0:03:00.5]} 4... Nf6 {[%clk 0:03:05.7]} 5. Bd3 {[%clk 0:03:01.4]}
5... d5 {[%clk 0:03:04.1]} 6. e5 {[%clk 0:02:59]} 6... Nfd7 {[%clk 0:03:04.2]}
7. O-O {[%clk 0:02:59.4]} 7... c5 {[%clk 0:03:04.5]} 8. Bg5 {[%clk 0:02:28.3]}
8... Be7 {[%clk 0:02:39.4]} 9. Nb5 {[%clk 0:02:22.7]} 9... Bxg5 {[%clk
0:02:26.6]} 10. Nd6+ {[%clk 0:02:21.7]} 10... Kf8 {[%clk 0:02:28.1]} 11. Nxb7
{[%clk 0:02:20.2]} 11... Qe7 {[%clk 0:02:29.1]} 12. Nxg5 {[%clk 0:02:06.9]}
12... Qxg5 {[%clk 0:02:28.5]} 13. f4 {[%clk 0:02:08.4]} 13... Qe7 {[%clk
0:02:28.8]} 14. c4 {[%clk 0:02:03.6]} 14... dxc4 {[%clk 0:02:17]} 15. Be4 {[%clk
0:02:00.4]} 15... Na6 {[%clk 0:02:09]} 16. Nxc5 {[%clk 0:01:56.7]} 16... Naxc5
{[%clk 0:01:59]} 17. Bxa8 {[%clk 0:01:55.2]} 17... Nd3 {[%clk 0:02:00.7]} 18.
Qa4 {[%clk 0:01:52.7]} 18... g6 {[%clk 0:01:55.9]} 19. Be4 {[%clk 0:01:39.8]}
19... Nxb2 {[%clk 0:01:54.3]} 20. Qc2 {[%clk 0:01:36.8]} 20... Qa3 {[%clk
0:01:46.7]} 21. Rab1 {[%clk 0:01:28.6]} 21... Qe3+ {[%clk 0:00:54.8]} 22. Kh1
{[%clk 0:01:27.7]} 22... Nd3 {[%clk 0:00:56.7]} 23. Bxd3 {[%clk 0:01:14.4]}
23... Qxd3 {[%clk 0:00:57.8]} 24. Qxd3 {[%clk 0:01:07.7]} 24... cxd3 {[%clk
0:00:59.7]} 25. Rfd1 {[%clk 0:01:06.7]} 25... Kg7 {[%clk 0:00:52.3]} 26. Rxd3
{[%clk 0:01:07.3]} 26... Rc8 {[%clk 0:00:53.4]} 27. d5 {[%clk 0:01:04.1]} 27...
exd5 {[%clk 0:00:51.4]} 28. Rxd5 {[%clk 0:01:06]} 28... Nc5 {[%clk 0:00:53.3]}
29. Rbd1 {[%clk 0:01:02]} 29... Re8 {[%clk 0:00:54.6]} 30. Rd8 {[%clk
0:00:58.9]} 30... Re7 {[%clk 0:00:55.4]} 31. R8d6 {[%clk 0:00:58.1]} 31... h5
{[%clk 0:00:55.8]} 32. g3 {[%clk 0:00:55.6]} 32... Rc7 {[%clk 0:00:55.9]} 33.
Kg2 {[%clk 0:00:54.5]} 33... Ne4 {[%clk 0:00:53.2]} 34. Rd7 {[%clk 0:00:54.1]}
34... Rc2+ {[%clk 0:00:54.2]} 35. Kf3 {[%clk 0:00:50.4]} 35... Nf2 {[%clk
0:00:50.3]} 36. R1d2 {[%clk 0:00:47.2]} 36... Rc3+ {[%clk 0:00:34.1]} 37. Kxf2
{[%clk 0:00:45.4]} 1-0

[Event "*** Titled Tuesday 3|2 Blitz"]
[Site "Chess.com"]
[Date "2016.06.07"]
[Round "3"]
[White "Fandorine"]
[Black "OldweakGM"]
[Result "1-0"]
[WhiteElo "2609"]
[BlackElo "2612"]
[TimeControl "180+2"]
[EndTime "17:33:18 PDT"]
[Termination "Fandorine won by resignation"]

1. e4 {[%clk 0:03:01.9]} 1... c5 {[%clk 0:02:49.8]} 2. Nf3 {[%clk 0:03:02.8]}
2... d6 {[%clk 0:02:49.8]} 3. d4 {[%clk 0:03:03.8]} 3... cxd4 {[%clk 0:02:50.5]}
4. Qxd4 {[%clk 0:03:05.7]} 4... a6 {[%clk 0:02:49.2]} 5. h3 {[%clk 0:03:06.5]}
5... Nc6 {[%clk 0:02:49.6]} 6. Qe3 {[%clk 0:03:08.1]} 6... g6 {[%clk 0:02:51]}
7. Be2 {[%clk 0:03:09.7]} 7... Bg7 {[%clk 0:02:52.1]} 8. O-O {[%clk 0:03:10.5]}
8... Nf6 {[%clk 0:02:53.6]} 9. c4 {[%clk 0:03:11.3]} 9... O-O {[%clk 0:02:54.9]}
10. Nc3 {[%clk 0:03:13]} 10... Nd7 {[%clk 0:02:56.2]} 11. Rd1 {[%clk 0:03:13.2]}
11... Nc5 {[%clk 0:02:57]} 12. Rb1 {[%clk 0:03:12.9]} 12... f5 {[%clk
0:02:57.9]} 13. b4 {[%clk 0:02:40.4]} 13... Nxe4 {[%clk 0:02:57]} 14. Nxe4
{[%clk 0:02:41.9]} 14... fxe4 {[%clk 0:02:58.4]} 15. Ng5 {[%clk 0:02:43.6]}
15... Bf5 {[%clk 0:02:43.2]} 16. Nxe4 {[%clk 0:02:37.2]} 16... Rc8 {[%clk
0:02:43.6]} 17. Bb2 {[%clk 0:02:22.8]} 17... Ne5 {[%clk 0:02:42.5]} 18. Rbc1
{[%clk 0:02:23.3]} 18... Qe8 {[%clk 0:02:26.8]} 19. c5 {[%clk 0:02:10.5]} 19...
Bxe4 {[%clk 0:02:15.8]} 20. Qxe4 {[%clk 0:02:10.8]} 20... Qf7 {[%clk 0:02:14.9]}
21. Bd4 {[%clk 0:02:07.5]} 21... Kh8 {[%clk 0:02:12.3]} 22. Qxb7 {[%clk
0:01:34.9]} 22... Rb8 {[%clk 0:02:00]} 23. Qxa6 {[%clk 0:01:36.1]} 23... Ra8
{[%clk 0:02:00.8]} 24. Qb7 {[%clk 0:01:28.7]} 24... Rxa2 {[%clk 0:02:01.5]} 25.
Qe4 {[%clk 0:01:19.5]} 25... Qb3 {[%clk 0:01:11.8]} 26. cxd6 {[%clk 0:01:05.9]}
26... exd6 {[%clk 0:01:09]} 27. Rc7 {[%clk 0:00:46.4]} 27... Bf6 {[%clk
0:00:58.8]} 28. b5 {[%clk 0:00:28.2]} 28... Ra4 {[%clk 0:00:57.8]} 29. Qe3
{[%clk 0:00:20.3]} 29... Qa2 {[%clk 0:00:54]} 30. Qh6 {[%clk 0:00:15]} 30... Qg8
{[%clk 0:00:50.4]} 31. Rxh7+ {[%clk 0:00:11.5]} 1-0

[Event "*** Titled Tuesday 3|2 Blitz"]
[Site "Chess.com"]
[Date "2016.06.07"]
[Round "3"]
[White "dretch"]
[Black "severomorskij"]
[Result "1-0"]
[WhiteElo "2626"]
[BlackElo "2606"]
[TimeControl "180+2"]
[EndTime "17:33:44 PDT"]
[Termination "dretch won by checkmate"]

1. d4 {[%clk 0:03:01.9]} 1... Nf6 {[%clk 0:03:00.5]} 2. c4 {[%clk 0:03:03.1]}
2... e6 {[%clk 0:03:01.6]} 3. Nc3 {[%clk 0:03:04]} 3... Bb4 {[%clk 0:03:00.2]}
4. Qc2 {[%clk 0:03:05.3]} 4... d5 {[%clk 0:02:59.2]} 5. cxd5 {[%clk 0:03:06.1]}
5... exd5 {[%clk 0:03:00.4]} 6. Bg5 {[%clk 0:03:05.8]} 6... c5 {[%clk
0:02:57.9]} 7. dxc5 {[%clk 0:03:06.8]} 7... O-O {[%clk 0:02:54.4]} 8. e3 {[%clk
0:03:05.9]} 8... Be6 {[%clk 0:02:44.1]} 9. Nf3 {[%clk 0:03:04.3]} 9... h6 {[%clk
0:02:43.2]} 10. Bh4 {[%clk 0:02:52.6]} 10... Nbd7 {[%clk 0:02:29.2]} 11. c6
{[%clk 0:02:53.5]} 11... bxc6 {[%clk 0:02:28.7]} 12. Be2 {[%clk 0:02:54.4]}
12... Qa5 {[%clk 0:02:19.3]} 13. O-O {[%clk 0:02:52.5]} 13... Bd6 {[%clk
0:02:00.8]} 14. Nd4 {[%clk 0:02:49.6]} 14... c5 {[%clk 0:01:57.5]} 15. Nf5
{[%clk 0:02:40.4]} 15... Bc7 {[%clk 0:01:33.4]} 16. Nb5 {[%clk 0:02:23.7]} 16...
Bxf5 {[%clk 0:01:18.7]} 17. Qxf5 {[%clk 0:02:23.9]} 17... Be5 {[%clk 0:01:18.2]}
18. Bxf6 {[%clk 0:02:14.8]} 18... Bxf6 {[%clk 0:01:09.5]} 19. Qxd7 {[%clk
0:02:15.3]} 19... Rfd8 {[%clk 0:01:03.8]} 20. Qf5 {[%clk 0:02:10.4]} 20... Bxb2
{[%clk 0:01:01.5]} 21. Rab1 {[%clk 0:02:09.3]} 21... Bf6 {[%clk 0:00:52.8]} 22.
Bd3 {[%clk 0:01:51.3]} 22... c4 {[%clk 0:00:53.5]} 23. Bc2 {[%clk 0:01:47.4]}
23... Rab8 {[%clk 0:00:39.2]} 24. Nd4 {[%clk 0:01:37]} 24... Bxd4 {[%clk
0:00:37.2]} 25. Qh7+ {[%clk 0:01:34.7]} 25... Kf8 {[%clk 0:00:38.1]} 26. exd4
{[%clk 0:01:35.9]} 26... Rxb1 {[%clk 0:00:38.4]} 27. Bxb1 {[%clk 0:01:35.2]}
27... Qd2 {[%clk 0:00:33]} 28. Qh8+ {[%clk 0:01:31.9]} 28... Ke7 {[%clk
0:00:34.1]} 29. Qxg7 {[%clk 0:01:33.1]} 29... c3 {[%clk 0:00:34.4]} 30. Qe5+
{[%clk 0:01:32.4]} 30... Kf8 {[%clk 0:00:35.2]} 31. Re1 {[%clk 0:01:32]} 31...
Kg8 {[%clk 0:00:32.3]} 32. Qe3 {[%clk 0:01:26.9]} 32... Rc8 {[%clk 0:00:24.1]}
33. Bf5 {[%clk 0:01:27.9]} 33... Rc6 {[%clk 0:00:16]} 34. h4 {[%clk 0:01:16.4]}
34... Kg7 {[%clk 0:00:11.4]} 35. Qe5+ {[%clk 0:01:10.1]} 35... Kg8 {[%clk
0:00:10.7]} 36. Re3 {[%clk 0:01:09.8]} 36... c2 {[%clk 0:00:08.4]} 37. Rg3+
{[%clk 0:01:07.3]} 37... Kf8 {[%clk 0:00:09.4]} 38. Qb8+ {[%clk 0:00:54.2]}
38... Ke7 {[%clk 0:00:09.8]} 39. Qb7+ {[%clk 0:00:55.2]} 39... Kd6 {[%clk
0:00:06.8]} 40. Qd7# {[%clk 0:00:55.4]} 1-0

[Event "*** Titled Tuesday 3|2 Blitz"]
[Site "Chess.com"]
[Date "2016.06.07"]
[Round "3"]
[White "MaestroASK"]
[Black "michaelq2d5"]
[Result "1-0"]
[WhiteElo "2460"]
[BlackElo "2470"]
[TimeControl "180+2"]
[EndTime "17:34:04 PDT"]
[Termination "MaestroASK won on time"]

1. g3 {[%clk 0:02:56.8]} 1... d5 {[%clk 0:03:01]} 2. d3 {[%clk 0:02:57.4]} 2...
Nf6 {[%clk 0:03:02.4]} 3. Bg2 {[%clk 0:02:57.9]} 3... Bf5 {[%clk 0:03:03.4]} 4.
Nd2 {[%clk 0:02:58]} 4... e6 {[%clk 0:03:03.2]} 5. e4 {[%clk 0:02:59]} 5... Bg6
{[%clk 0:03:04.4]} 6. Nh3 {[%clk 0:02:59.2]} 6... c5 {[%clk 0:03:01]} 7. Qe2
{[%clk 0:02:59.5]} 7... Be7 {[%clk 0:03:01.4]} 8. Nf4 {[%clk 0:02:59.3]} 8...
Nc6 {[%clk 0:03:02.5]} 9. h4 {[%clk 0:02:57.1]} 9... Nd4 {[%clk 0:02:48.9]} 10.
Qd1 {[%clk 0:02:57.6]} 10... dxe4 {[%clk 0:02:48.9]} 11. dxe4 {[%clk 0:02:57.5]}
11... e5 {[%clk 0:02:49.7]} 12. Nd3 {[%clk 0:02:51.1]} 12... Bd6 {[%clk
0:02:26.2]} 13. c3 {[%clk 0:02:47.2]} 13... Ne6 {[%clk 0:02:09.9]} 14. h5 {[%clk
0:02:41.9]} 14... Bxh5 {[%clk 0:02:08.4]} 15. Rxh5 {[%clk 0:02:42]} 15... Nxh5
{[%clk 0:02:09.1]} 16. Qxh5 {[%clk 0:02:41.4]} 16... g6 {[%clk 0:02:10.3]} 17.
Qe2 {[%clk 0:02:39.3]} 17... Bc7 {[%clk 0:02:08.3]} 18. Nc4 {[%clk 0:02:39.7]}
18... Qf6 {[%clk 0:02:04.7]} 19. a4 {[%clk 0:02:38.9]} 19... b6 {[%clk
0:02:03.7]} 20. Bh3 {[%clk 0:02:35]} 20... Ng5 {[%clk 0:01:58.4]} 21. Bxg5
{[%clk 0:02:30.6]} 21... Qxg5 {[%clk 0:01:59.4]} 22. Qg4 {[%clk 0:02:30]} 22...
Qe7 {[%clk 0:01:57.3]} 23. Ne3 {[%clk 0:02:23.8]} 23... h5 {[%clk 0:01:57.5]}
24. Qe2 {[%clk 0:02:20.6]} 24... Rd8 {[%clk 0:01:49.1]} 25. Nd5 {[%clk
0:02:20.7]} 25... Qd6 {[%clk 0:01:50.1]} 26. Qf3 {[%clk 0:02:16.8]} 26... h4
{[%clk 0:01:42]} 27. O-O-O {[%clk 0:02:14.4]} 27... hxg3 {[%clk 0:01:41.6]} 28.
Qxg3 {[%clk 0:02:15.3]} 28... Bb8 {[%clk 0:01:40.5]} 29. Bg2 {[%clk 0:02:09.8]}
29... Qe6 {[%clk 0:01:35.4]} 30. Rh1 {[%clk 0:02:01.8]} 30... Rxh1+ {[%clk
0:01:28.5]} 31. Bxh1 {[%clk 0:02:02.4]} 31... f5 {[%clk 0:01:28.5]} 32. c4
{[%clk 0:02:00.2]} 32... f4 {[%clk 0:01:21.5]} 33. Qh4 {[%clk 0:02:00.3]} 33...
Qf7 {[%clk 0:01:11.5]} 34. Bf3 {[%clk 0:01:44.1]} 34... Bd6 {[%clk 0:01:04]} 35.
Bg4 {[%clk 0:01:39.1]} 35... Qg7 {[%clk 0:00:58.5]} 36. b3 {[%clk 0:01:28.3]}
36... Be7 {[%clk 0:00:41]} 37. Nxe7 {[%clk 0:01:02]} 37... Rxd3 {[%clk
0:00:37.3]} 38. Nxg6 {[%clk 0:00:54]} 38... Rd6 {[%clk 0:00:13]} 39. Qg5 {[%clk
0:00:43.8]} 1-0

[Event "*** Titled Tuesday 3|2 Blitz"]
[Site "Chess.com"]
[Date "2016.06.07"]
[Round "3"]
[White "BCNUM8"]
[Black "djgwards"]
[Result "0-1"]
[WhiteElo "2121"]
[BlackElo "2091"]
[TimeControl "180+2"]
[EndTime "17:34:08 PDT"]
[Termination "djgwards won on time"]

1. d4 {[%clk 0:02:55.6]} 1... d5 {[%clk 0:03:00.3]} 2. Bg5 {[%clk 0:02:56.5]}
2... c6 {[%clk 0:02:56.2]} 3. Nf3 {[%clk 0:02:56.8]} 3... h6 {[%clk 0:02:48.4]}
4. Bh4 {[%clk 0:02:55.9]} 4... Qb6 {[%clk 0:02:49.3]} 5. b3 {[%clk 0:02:32.4]}
5... Nd7 {[%clk 0:02:38.7]} 6. e3 {[%clk 0:02:32.9]} 6... e5 {[%clk 0:02:30.8]}
7. Be2 {[%clk 0:02:34]} 7... e4 {[%clk 0:02:28.9]} 8. Nfd2 {[%clk 0:02:35]} 8...
Bd6 {[%clk 0:02:26.2]} 9. c4 {[%clk 0:02:30.4]} 9... Qc7 {[%clk 0:02:26.8]} 10.
cxd5 {[%clk 0:02:14]} 10... cxd5 {[%clk 0:02:27.6]} 11. Nc3 {[%clk 0:02:15.5]}
11... Ngf6 {[%clk 0:02:27.6]} 12. Nb5 {[%clk 0:02:14.9]} 12... Qb8 {[%clk
0:02:27.8]} 13. Nxd6+ {[%clk 0:02:15.7]} 13... Qxd6 {[%clk 0:02:29.7]} 14. Bg3
{[%clk 0:02:17.4]} 14... Qe7 {[%clk 0:02:26.4]} 15. O-O {[%clk 0:02:11.9]} 15...
O-O {[%clk 0:02:26.3]} 16. Rc1 {[%clk 0:02:12.6]} 16... Ne8 {[%clk 0:02:17.9]}
17. Nb1 {[%clk 0:01:47]} 17... Nb6 {[%clk 0:02:13.3]} 18. a4 {[%clk 0:01:46.3]}
18... Be6 {[%clk 0:02:10.1]} 19. a5 {[%clk 0:01:43]} 19... Nc8 {[%clk
0:02:11.5]} 20. Nc3 {[%clk 0:01:44.6]} 20... Ncd6 {[%clk 0:02:11.5]} 21. Na4
{[%clk 0:01:35.7]} 21... Nf5 {[%clk 0:02:07.8]} 22. Nc5 {[%clk 0:01:26.2]} 22...
Nxg3 {[%clk 0:02:08.1]} 23. hxg3 {[%clk 0:01:27]} 23... Nd6 {[%clk 0:02:07.4]}
24. b4 {[%clk 0:01:15.7]} 24... b5 {[%clk 0:01:56.7]} 25. Nxe6 {[%clk 0:01:07]}
25... Qxe6 {[%clk 0:01:57.7]} 26. Rc6 {[%clk 0:01:06.4]} 26... Rfc8 {[%clk
0:01:50.1]} 27. Bxb5 {[%clk 0:01:06.4]} 27... Rcb8 {[%clk 0:01:47.5]} 28. Qe2
{[%clk 0:01:00.8]} 28... Rxb5 {[%clk 0:01:45]} 29. Rxd6 {[%clk 0:01:00.5]} 29...
Qxd6 {[%clk 0:01:43.1]} 30. Qxb5 {[%clk 0:01:01.5]} 30... Rb8 {[%clk 0:01:45]}
31. Qc5 {[%clk 0:01:00.4]} 31... Qxc5 {[%clk 0:01:14.2]} 32. bxc5 {[%clk
0:01:02.3]} 32... Kf8 {[%clk 0:01:16.1]} 33. Rc1 {[%clk 0:00:58]} 33... Ke7
{[%clk 0:01:17.2]} 34. c6 {[%clk 0:00:59.7]} 34... Kd6 {[%clk 0:01:18.3]} 35. c7
{[%clk 0:00:59.8]} 35... Rc8 {[%clk 0:01:19.5]} 36. f3 {[%clk 0:00:34]} 36...
exf3 {[%clk 0:00:59.7]} 37. gxf3 {[%clk 0:00:35.2]} 37... Rxc7 {[%clk
0:01:01.6]} 38. Rxc7 {[%clk 0:00:28.7]} 38... Kxc7 {[%clk 0:01:03.5]} 39. e4
{[%clk 0:00:30.4]} 39... Kc6 {[%clk 0:01:04.8]} 40. Kf2 {[%clk 0:00:30.2]} 40...
Kb5 {[%clk 0:01:05]} 41. exd5 {[%clk 0:00:28.4]} 41... Kxa5 {[%clk 0:01:05.6]}
42. Ke3 {[%clk 0:00:23]} 42... Kb6 {[%clk 0:01:07]} 43. Kd3 {[%clk 0:00:24.6]}
43... Kc7 {[%clk 0:01:08.3]} 44. Kc4 {[%clk 0:00:24.9]} 44... Kd6 {[%clk
0:01:10]} 0-1

[Event "*** Titled Tuesday 3|2 Blitz"]
[Site "Chess.com"]
[Date "2016.06.07"]
[Round "3"]
[White "IIIlllII1llIl"]
[Black "yopino"]
[Result "0-1"]
[WhiteElo "2399"]
[BlackElo "2262"]
[TimeControl "180+2"]
[EndTime "17:34:12 PDT"]
[Termination "yopino won by resignation"]

1. e4 {[%clk 0:02:10.5]} 1... c5 {[%clk 0:03:00.2]} 2. c3 {[%clk 0:02:11.8]}
2... g6 {[%clk 0:02:56.1]} 3. Nf3 {[%clk 0:02:12.6]} 3... Bg7 {[%clk 0:02:52.9]}
4. d4 {[%clk 0:02:13.8]} 4... cxd4 {[%clk 0:02:51.9]} 5. cxd4 {[%clk 0:02:15.7]}
5... d5 {[%clk 0:02:47.7]} 6. e5 {[%clk 0:02:17]} 6... Nh6 {[%clk 0:02:41]} 7.
h3 {[%clk 0:02:15.3]} 7... O-O {[%clk 0:02:37.2]} 8. Nc3 {[%clk 0:02:16.4]} 8...
Nc6 {[%clk 0:02:32.4]} 9. Bd3 {[%clk 0:01:51.1]} 9... Nf5 {[%clk 0:02:27.7]} 10.
Bc2 {[%clk 0:01:42.5]} 10... Qb6 {[%clk 0:02:28.7]} 11. Nxd5 {[%clk 0:01:41.2]}
11... Qa5+ {[%clk 0:02:18.8]} 12. Nc3 {[%clk 0:01:42.4]} 12... Nfxd4 {[%clk
0:02:15.4]} 13. Nxd4 {[%clk 0:01:40.6]} 13... Rd8 {[%clk 0:02:14.9]} 14. Be3
{[%clk 0:01:23]} 14... Bxe5 {[%clk 0:02:10.4]} 15. O-O {[%clk 0:01:03]} 15...
Nxd4 {[%clk 0:02:11.5]} 16. Bxd4 {[%clk 0:01:04]} 16... Bxd4 {[%clk 0:02:07.5]}
17. Qf3 {[%clk 0:01:05.3]} 17... Be6 {[%clk 0:01:51.6]} 18. Rad1 {[%clk
0:01:05.7]} 18... Rab8 {[%clk 0:01:40.4]} 19. Bb3 {[%clk 0:00:46.5]} 19... Bxb3
{[%clk 0:01:26.6]} 20. axb3 {[%clk 0:00:48.4]} 20... Qb6 {[%clk 0:01:24.9]} 21.
Nd5 {[%clk 0:00:47.6]} 21... Qc5 {[%clk 0:01:20.3]} 22. Nc3 {[%clk 0:00:44.8]}
22... e5 {[%clk 0:01:14.3]} 23. Ne4 {[%clk 0:00:44.4]} 23... Qe7 {[%clk
0:01:10.1]} 24. Rfe1 {[%clk 0:00:38.2]} 24... f5 {[%clk 0:01:07.1]} 25. Nc3
{[%clk 0:00:35.8]} 25... Qc5 {[%clk 0:01:07.8]} 26. Qe2 {[%clk 0:00:33.4]} 26...
a6 {[%clk 0:01:03.1]} 27. Rc1 {[%clk 0:00:32.1]} 27... Rbc8 {[%clk 0:00:58.7]}
28. Kh2 {[%clk 0:00:32.5]} 28... Qb6 {[%clk 0:00:55.4]} 29. Na4 {[%clk
0:00:31.5]} 29... Qxb3 {[%clk 0:00:53.4]} 30. Nc3 {[%clk 0:00:29.1]} 30... b5
{[%clk 0:00:49.7]} 31. Qf3 {[%clk 0:00:26.2]} 31... Qxb2 {[%clk 0:00:46]} 32.
Ne2 {[%clk 0:00:27.4]} 32... e4 {[%clk 0:00:42.2]} 33. Rxc8 {[%clk 0:00:21.8]}
33... Rxc8 {[%clk 0:00:44.1]} 34. Qg3 {[%clk 0:00:20.9]} 34... Be5 {[%clk
0:00:14]} 35. Nf4 {[%clk 0:00:21.7]} 35... Qd2 {[%clk 0:00:13]} 36. Re3 {[%clk
0:00:22.7]} 36... Rc3 {[%clk 0:00:09.7]} 37. Qg5 {[%clk 0:00:20.7]} 37... Rxe3
{[%clk 0:00:07.8]} 38. Qd8+ {[%clk 0:00:21.6]} 38... Qxd8 {[%clk 0:00:08.3]} 39.
fxe3 {[%clk 0:00:22.4]} 39... Bxf4+ {[%clk 0:00:10.2]} 40. exf4 {[%clk
0:00:24.3]} 40... Qd3 {[%clk 0:00:11.4]} 0-1